bitfinex/quotes_SOLUSD_20250815
["timestamp","ask_amount","ask_price","bid_price","bid_amount"]
[1755225030565,0.09624249,194.13,194.12,0.03]
[1755225031959,5.41264448,194.13,194.12,0.03]
[1755225034052,0.78624249,194.13,194.12,0.03]
[1755225035135,0.89478084,194.13,194.12,0.03]
[1755225035337,0.79853835,194.13,194.12,0.03]
[1755225037253,4.24412421,194.13,194.12,0.03]
[1755225038942,8.8705262,194.13,194.12,0.03]
[1755225042638,4.24412421,194.13,194.12,0.03]
[1755225043139,12.7221036,194.13,194.12,0.03]
[1755225043940,8.09570161,194.13,194.12,0.03]
[1755225044141,8.09569393,194.13,194.12,0.03]
[1755225044341,12.41126707,194.13,194.12,0.03]
[1755225045562,11.72126707,194.13,194.12,0.03]
[1755225045875,3.55412421,194.13,194.12,0.03]
[1755225046039,4.24412421,194.13,194.12,0.03]
[1755225046369,3.55412421,194.13,194.12,0.03]
[1755225048377,4.24412421,194.13,194.12,0.03]
[1755225048666,12.72706515,194.13,194.12,0.03]
[1755225050540,17.04263829,194.13,194.12,0.03]
[1755225051739,12.72706515,194.13,194.12,0.03]
[1755225052462,7.41066316,194.13,194.12,0.03]
[1755225052638,3.55412421,194.13,194.12,0.03]
[1755225052845,7.41082423,194.13,194.12,0.03]
[1755225054456,12.72722622,194.13,194.12,0.03]
[1755225054763,8.10082423,194.13,194.12,0.03]
[1755225055165,8.08764463,194.13,194.12,0.03]
[1755225055368,7.39764463,194.13,194.12,0.03]
[1755225056048,8.08764463,194.13,194.12,0.03]
[1755225056348,12.71404662,194.13,194.12,0.03]
[1755225056573,17.02961976,194.13,194.12,0.03]
[1755225056866,12.71404662,194.13,194.12,0.03]
[1755225058673,17.02961976,194.13,194.12,0.03]
[1755225058871,12.71404662,194.13,194.12,0.03]
[1755225059267,17.02961976,194.13,194.12,0.03]
[1755225059989,12.71404662,194.13,194.11,0.03]
[1755225060184,68.32507488,194.12,194.11,0.03]
[1755225060352,15.10621557,194.11,194.1,0.03]
[1755225060553,33.49492751,194.11,194.1,0.03]
[1755225060905,15.10621557,194.09,194.07,0.03]
[1755225061049,69.07989983,194.08,194.07,0.03]
[1755225061364,69.77989983,194.08,194.07,0.03]
[1755225061561,71.84500183,194.08,194.07,0.03]
[1755225061873,101.21251986,194.08,194.07,0.03]
[1755225063870,96.58611787,194.08,194.07,0.03]
[1755225064069,101.21251986,194.08,194.07,0.03]
[1755225070264,106.99751625,194.08,194.07,0.03]
[1755225070574,151.63261756,194.07,193.96,5.45546394]
[1755225070777,189.63490344,194.07,193.96,5.45567406]
[1755225070987,189.63490344,194.07,193.96,0.3]
[1755225071374,191.70043244,194.07,193.96,0.3]
[1755225072401,235.36776465,194.06,193.96,0.3]
[1755225072971,237.43350665,194.06,193.96,0.3]
[1755225074086,237.43350665,194.06,193.95,5.15591616]
[1755225074277,237.43350665,194.06,194.01,0.03]
[1755225075192,237.53188318,194.06,194.01,0.03]
[1755225076203,207.53188318,194.06,194.01,0.03]
[1755225076377,203.21206741,194.06,194.01,0.03]
[1755225077294,201.14632541,194.06,194.01,0.03]
[1755225078202,69.24632541,194.06,194.01,0.03]
[1755225078498,99.24632541,194.06,194.01,0.03]
[1755225081105,99.30632541,194.06,194.01,0.03]
[1755225081279,101.99410893,194.06,194.01,0.03]
[1755225082197,98.60632541,194.06,194.01,0.03]
[1755225082413,48.71017796,194.06,194.03,0.33]
[1755225082615,69.86396239,194.06,194.03,0.33]
[1755225082912,33.60396239,194.06,194.05,0.33]
[1755225083282,38.23036438,194.06,194.05,0.03]
[1755225083601,53.33657995,194.06,194.05,0.03]
[1755225083902,59.18962539,194.06,194.05,0.03]
[1755225089590,48.71017796,194.06,194.05,0.03]
[1755225089795,84.97017796,194.06,194.05,0.33]
[1755225090006,89.59657995,194.06,194.05,0.33]
[1755225090208,89.59657995,194.06,194.05,0.03]
[1755225090931,59.59657995,194.06,194.05,0.03]
[1755225091120,64.74962539,194.06,194.05,0.03]
[1755225092616,65.41962539,194.06,194.05,0.03]
[1755225093290,64.74962539,194.06,194.05,0.03]
[1755225093918,94.74962539,194.06,194.05,0.03]
[1755225095423,94.74480206,194.06,194.05,0.03]
[1755225096403,95.41480206,194.06,194.05,0.03]
[1755225098111,99.25765761,194.06,194.05,0.03]
[1755225098298,98.58765761,194.06,194.05,0.03]
[1755225098505,84.96535463,194.06,194.05,0.03]
[1755225099224,89.59175662,194.06,194.05,0.03]
[1755225100218,63.43857594,194.06,194.05,0.03]
[1755225100606,59.59175662,194.06,194.05,0.03]
[1755225101214,63.44051418,194.06,194.05,0.03]
[1755225101726,58.81411219,194.06,194.05,0.03]
[1755225102825,63.44051418,194.06,194.05,0.03]
[1755225103015,69.26355962,194.06,194.05,0.03]
[1755225103326,15.10621557,194.05,194.03,0.03]
[1755225103501,43.53434342,194.04,194.03,0.03]
[1755225103701,44.31198785,194.04,194.03,0.03]
[1755225103906,39.68558586,194.04,194.03,0.03]
[1755225104123,43.54013852,194.04,194.03,0.03]
[1755225104324,44.21013852,194.04,194.03,0.03]
[1755225104532,48.83654051,194.04,194.03,0.03]
[1755225104704,53.17418137,194.04,194.03,0.03]
[1755225105104,68.28039694,194.04,194.03,0.03]
[1755225107007,53.177002,194.04,194.03,0.03]
[1755225107410,69.09915329,194.04,194.03,0.03]
[1755225108440,15.10621557,194.03,194.01,0.03]
[1755225108629,48.16936114,194.02,194.01,0.03]
[1755225108801,48.83936114,194.02,194.01,0.03]
[1755225109205,78.83936114,194.02,194.01,0.03]
[1755225109429,99.09968453,194.02,194.01,0.03]
[1755225109615,99.0999715,194.02,194.01,0.03]
[1755225109918,94.47356951,194.02,194.01,0.03]
[1755225110234,99.0999715,194.02,194.01,0.03]
[1755225110931,69.0999715,194.02,194.01,0.03]
[1755225111133,7.7814953,194.02,194.01,4.95640199]
[1755225111343,3.44558586,194.02,194.01,10.11077547]
[1755225111510,3.44558586,194.02,194.01,5.48437348]
[1755225114612,3.44558586,194.02,194.01,5.18437348]
[1755225114807,3.44558586,194.02,194.01,0.03]
[1755225115007,13.07789729,194.02,194.01,0.03]
[1755225115207,17.0386087,194.02,194.01,0.03]
[1755225115430,17.03833421,194.02,194.01,0.03]
[1755225117436,16.36833421,194.02,194.01,0.03]
[1755225117634,11.74193222,194.02,194.01,0.03]
[1755225118034,12.03242477,194.02,194.01,0.03]
[1755225118544,7.40602278,194.02,194.01,0.03]
[1755225118746,12.03242477,194.02,194.01,0.03]
[1755225119241,3.55306591,194.02,194.01,0.33]
[1755225119450,8.1794679,194.02,194.01,0.03]
[1755225119620,12.69988662,194.02,194.01,0.03]
[1755225119821,7.40348463,194.02,194.01,0.03]
[1755225120147,12.02988662,194.02,194.01,0.03]
[1755225120452,7.40348463,194.02,194.01,0.03]
[1755225122436,3.55306591,194.02,194.01,0.03]
[1755225123500,12.69995561,194.02,194.01,0.03]
[1755225123953,17.03586505,194.02,194.01,0.03]
[1755225125462,12.40946306,194.02,194.01,0.03]
[1755225125630,17.03586505,194.02,194.01,0.03]
[1755225126032,17.03562049,194.02,194.01,0.03]
[1755225127155,12.4092185,194.02,194.01,0.03]
[1755225127954,11.7392185,194.02,194.01,0.03]
[1755225128259,3.55306591,194.02,194.01,0.03]
[1755225129239,7.40384064,194.02,194.01,0.03]
[1755225130964,3.55306591,194.02,194.01,0.03]
[1755225131274,3.55306591,194.02,194.01,10.11077547]
[1755225131436,3.55306591,194.02,194.01,5.18437348]
[1755225131742,3.55306591,194.02,194.01,0.03]
[1755225132336,3.55306591,194.02,194.01,5.18437348]
[1755225133265,3.55306591,194.02,194.01,0.03]
[1755225133932,12.70012217,194.02,194.01,0.03]
[1755225134135,12.72013125,194.02,194.01,0.03]
[1755225134937,22.20623275,194.02,194.01,0.03]
[1755225135347,22.19869043,194.02,194.01,0.03]
[1755225136266,3.56553267,194.02,194.01,0.03]
[1755225136650,4.23553267,194.02,194.01,0.03]
[1755225136955,12.71375887,194.02,194.01,0.03]
[1755225137544,17.04575255,194.02,194.01,0.03]
[1755225138244,0.135227,194.01,193.99,0.03]
[1755225138443,3.46559494,194.0,193.99,0.03]
[1755225139377,4.13559494,194.0,193.99,0.03]
[1755225144958,3.46559494,194.0,193.99,0.03]
[1755225145467,4.13559494,194.0,193.99,0.03]
[1755225146267,7.98624759,194.0,193.99,0.03]
[1755225146763,4.13559494,194.0,193.99,0.03]
[1755225148692,3.46559494,194.0,193.99,0.03]
[1755225148990,4.13559494,194.0,193.99,0.03]
[1755225150375,7.98688872,194.0,193.99,0.03]
[1755225150552,4.13559494,194.0,193.99,0.03]
[1755225151054,7.98701818,194.0,193.99,0.03]
[1755225152357,7.31701818,194.0,193.99,0.03]
[1755225152552,3.46559494,194.0,193.99,4.65640199]
[1755225153049,3.46559494,194.0,193.99,0.03]
[1755225153254,4.13559494,194.0,193.99,0.03]
[1755225154163,3.46559494,194.0,193.99,0.03]
[1755225155248,3.57217684,194.0,193.99,0.03]
[1755225156458,3.57217684,194.0,193.99,4.65640199]
[1755225156666,3.57217684,194.0,193.99,0.03]
[1755225157085,3.57217684,194.0,193.99,4.65640199]
[1755225158262,3.57217684,194.0,193.99,9.81130688]
[1755225159783,3.57217684,194.0,193.99,5.18490489]
[1755225161556,3.57217684,194.0,193.99,9.81130688]
[1755225167093,3.57217684,194.0,193.99,10.11130688]
[1755225167385,3.57217684,194.0,193.99,9.81130688]
[1755225168770,4.24217684,194.0,193.99,9.81130688]
[1755225169398,4.24217684,194.0,193.99,5.18490489]
[1755225170868,4.24217684,194.0,193.99,0.03]
[1755225174566,4.24217684,194.0,193.99,5.18490489]
[1755225175185,4.13559494,194.0,193.99,5.18490489]
[1755225175394,4.24666591,194.0,193.99,5.18490489]
[1755225175772,4.24666591,194.0,193.99,0.03]
[1755225180971,12.72152272,194.0,193.99,0.03]
[1755225181179,32.1590785,194.0,193.99,0.03]
[1755225181392,27.82708482,194.0,193.97,0.03]
[1755225181705,16.96798011,193.99,193.97,0.03]
[1755225181880,3.46559494,193.98,193.97,0.03]
[1755225182217,4.16559494,193.98,193.97,0.03]
[1755225182387,3.46559494,193.98,193.97,0.03]
[1755225182588,4.16559494,193.98,193.97,0.03]
[1755225186781,8.81929875,193.98,193.97,0.03]
[1755225186987,12.66647668,193.98,193.97,0.03]
[1755225187402,32.92786288,193.98,193.97,0.03]
[1755225187610,37.25604471,193.98,193.97,0.03]
[1755225187888,42.41318071,193.98,193.97,0.03]
[1755225188099,38.08499888,193.98,193.97,0.03]
[1755225188604,62.92786288,193.98,193.97,0.03]
[1755225188807,8.01277287,193.98,193.97,0.03]
[1755225189108,8.81929875,193.98,193.97,0.03]
[1755225190110,4.16559494,193.98,193.97,0.03]
[1755225191787,8.81929875,193.98,193.97,0.03]
[1755225193300,29.08068495,193.98,193.97,0.03]
[1755225193511,32.91962772,193.98,193.97,0.03]
[1755225194293,29.08068495,193.98,193.97,0.03]
[1755225194494,23.92551432,193.98,193.97,0.03]
[1755225195300,24.03215885,193.98,193.97,0.03]
[1755225196087,33.02489754,193.98,193.97,0.03]
[1755225196293,54.03215885,193.98,193.97,0.03]
[1755225196521,49.37845504,193.98,193.97,0.03]
[1755225196687,34.27223947,193.98,193.97,0.03]
[1755225197418,38.92594328,193.98,193.97,0.03]
[1755225197920,8.92594328,193.98,193.97,0.03]
[1755225199527,4.27223947,193.98,193.97,0.03]
[1755225199710,8.92594328,193.98,193.97,0.03]
[1755225202423,4.27223947,193.98,193.97,0.03]
[1755225203606,8.92594328,193.98,193.97,0.03]
[1755225204716,7.25101834,193.98,193.97,0.03]
[1755225207030,12.40618897,193.98,193.97,0.03]
[1755225207234,7.25101834,193.98,193.97,0.03]
[1755225208633,27.51240454,193.98,193.97,0.03]
[1755225209811,27.50415997,193.98,193.97,0.03]
[1755225211225,22.34898934,193.98,193.97,0.03]
[1755225212135,52.34898934,193.98,193.97,0.03]
[1755225212340,57.50415997,193.98,193.97,0.03]
[1755225213641,27.50415997,193.98,193.97,0.03]
[1755225213839,31.34566472,193.98,193.97,0.03]
[1755225214020,35.66735268,193.98,193.97,0.03]
[1755225215036,65.66735268,193.98,193.97,0.03]
[1755225215334,101.86759965,193.98,193.97,0.03]
[1755225216417,103.93398165,193.98,193.97,0.03]
[1755225218429,99.61229369,193.98,193.97,0.03]
[1755225218748,69.61229369,193.98,193.97,0.03]
[1755225219130,73.93389824,193.98,193.97,0.03]
[1755225219523,69.61229369,193.98,193.97,0.03]
[1755225219923,69.61229369,193.98,193.95,0.03]
[1755225220123,18.08499444,193.96,193.95,0.03]
[1755225220337,25.38384956,193.96,193.95,0.03]
[1755225220542,26.05384956,193.96,193.95,0.03]
[1755225220931,67.40955176,193.96,193.95,0.03]
[1755225221557,97.40955176,193.96,193.95,0.03]
[1755225222227,101.72998314,193.96,193.95,0.03]
[1755225222426,99.47614776,193.96,193.95,0.03]
[1755225224426,99.47589385,193.96,193.95,0.03]
[1755225227350,99.47589385,193.96,193.93,0.03]
[1755225227554,22.40520386,193.94,193.93,0.03]
[1755225227766,67.36859204,193.94,193.93,0.03]
[1755225228062,68.03859204,193.94,193.93,0.03]
[1755225228245,62.25359565,193.94,193.93,0.03]
[1755225228443,92.25359565,193.94,193.93,0.03]
[1755225228627,97.41189765,193.94,193.93,0.03]
[1755225228825,72.56813153,193.94,193.93,0.03]
[1755225230229,72.56311157,193.94,193.93,0.03]
[1755225230730,78.34810796,193.94,193.93,0.03]
[1755225231842,108.34810796,193.94,193.93,0.03]
[1755225232352,108.34810796,193.94,193.91,0.03]
[1755225232543,18.08499444,193.92,193.91,0.03]
[1755225232741,91.57857569,193.92,193.91,0.03]
[1755225232961,97.40534136,193.92,193.91,0.03]
[1755225233741,99.47257836,193.92,193.91,0.03]
[1755225234657,15.10621557,193.91,193.89,0.03]
[1755225234856,95.88607503,193.9,193.89,0.03]
[1755225235159,92.24857569,193.9,193.89,0.03]
[1755225235365,92.34320304,193.9,193.89,0.03]
[1755225235871,95.32198204,193.9,193.89,0.03]
[1755225236050,99.48319483,193.9,193.89,0.03]
[1755225236384,104.6404924,193.9,193.89,0.03]
[1755225237537,100.80426152,193.9,193.89,0.03]
[1755225238867,70.80426152,193.9,193.89,0.03]
[1755225240666,75.96309059,193.9,193.89,0.03]
[1755225242074,109.78773029,193.9,193.89,0.03]
[1755225242251,15.10621557,193.89,193.84,0.3]
[1755225242450,2.97877887,193.85,193.84,0.3]
[1755225242664,6.43612924,193.85,193.84,0.3]
[1755225243167,3.45735037,193.85,193.84,0.3]
[1755225243347,2.97877887,193.86,193.84,0.3]
[1755225243543,6.41952909,193.86,193.84,0.3]
[1755225243760,21.52574466,193.86,193.85,0.33]
[1755225245572,21.52574466,193.86,193.85,0.03]
[1755225248676,51.52574466,193.86,193.85,0.03]
[1755225249375,57.35410636,193.86,193.85,0.03]
[1755225250048,27.35410636,193.86,193.85,0.03]
[1755225250960,24.37532749,193.86,193.85,0.03]
[1755225251253,27.35410636,193.86,193.85,0.03]
[1755225253977,18.54696579,193.86,193.85,0.03]
[1755225254177,21.52574466,193.86,193.85,0.03]
[1755225254473,18.54696579,193.86,193.85,0.03]
[1755225254689,21.52574466,193.86,193.85,0.03]
[1755225255356,18.65311053,193.86,193.85,0.03]
[1755225255583,21.6318894,193.86,193.85,0.03]
[1755225255751,27.4602511,193.86,193.85,0.03]
[1755225257279,24.48147223,193.86,193.85,0.03]
[1755225257481,27.4602511,193.86,193.85,0.03]
[1755225257680,24.48147223,193.86,193.85,0.03]
[1755225257882,27.4602511,193.86,193.85,0.03]
[1755225258381,24.48147223,193.86,193.85,0.03]
[1755225258590,27.4602511,193.86,193.85,0.03]
[1755225258903,23.81147223,193.86,193.85,0.03]
[1755225259062,26.7902511,193.86,193.85,0.03]
[1755225260262,21.6318894,193.86,193.85,0.03]
[1755225261892,3.54689496,193.86,193.85,0.33]
[1755225262773,6.52567383,193.86,193.85,0.03]
[1755225263077,7.19567383,193.86,193.85,0.03]
[1755225263275,4.21689496,193.86,193.85,0.03]
[1755225263462,7.19567383,193.86,193.85,0.03]
[1755225264498,27.4602511,193.86,193.85,0.03]
[1755225264797,63.6402511,193.86,193.85,0.03]
[1755225264994,68.8002751,193.86,193.85,0.03]
[1755225266094,98.8002751,193.86,193.85,0.03]
[1755225269004,102.63457161,193.86,193.85,0.03]
[1755225270004,106.93534381,193.86,193.85,0.03]
[1755225270999,103.95656494,193.86,193.85,0.03]
[1755225271202,92.9719134,193.86,193.85,0.03]
[1755225271388,101.10666005,193.86,193.85,0.03]
[1755225271590,71.10666005,193.86,193.85,0.03]
[1755225273096,98.12788118,193.86,193.85,0.03]
[1755225273291,101.10666005,193.86,193.85,0.03]
[1755225273917,101.81666005,193.86,193.85,0.03]
[1755225274607,106.97502175,193.86,193.85,0.03]
[1755225274930,15.10621557,193.85,193.81,0.03]
[1755225275085,39.62075022,193.84,193.81,0.03]
[1755225275411,6.41952909,193.83,193.81,0.03]
[1755225275614,3.44075022,193.82,193.81,0.03]
[1755225276312,6.41952909,193.82,193.81,0.03]
[1755225276812,3.44075022,193.82,193.81,0.03]
[1755225276987,6.41952909,193.82,193.81,0.03]
[1755225277588,3.44075022,193.82,193.81,0.03]
[1755225278001,22.23574466,193.82,193.81,0.03]
[1755225278599,199.31366879,193.82,193.81,0.03]
[1755225280317,199.3274185,193.82,193.81,0.03]
[1755225280697,233.6432768,193.82,193.81,0.03]
[1755225281404,233.64211485,193.82,193.81,0.03]
[1755225282121,233.63888206,193.82,193.81,0.03]
[1755225284120,241.77871206,193.82,193.81,0.03]
[1755225287222,241.77416913,193.82,193.81,0.03]
[1755225290199,243.24366059,193.82,193.77,0.03]
[1755225290522,2.97877887,193.78,193.77,0.03]
[1755225290824,46.44319236,193.78,193.77,0.03]
[1755225291015,39.63449993,193.78,193.77,0.03]
[1755225291215,3.45449993,193.78,193.77,0.03]
[1755225291421,6.4332788,193.78,193.77,0.03]
[1755225293933,2.97877887,193.78,193.77,0.03]
[1755225294321,3.68877887,193.78,193.77,0.03]
[1755225295325,3.79162341,193.78,193.77,0.03]
[1755225295626,0.10284454,193.78,193.77,0.03]
[1755225296008,3.79162341,193.78,193.77,0.03]
[1755225297033,3.08162341,193.78,193.77,0.03]
[1755225298132,0.10284454,193.78,193.77,0.03]
[1755225298329,3.08162341,193.78,193.77,0.03]
[1755225300426,3.79162341,193.78,193.77,0.03]
[1755225301307,24.05833025,193.78,193.77,0.03]
[1755225301707,164.56443883,193.78,193.77,0.03]
[1755225302426,168.38607971,193.78,193.77,0.03]
[1755225302603,163.22558844,193.78,193.77,0.03]
[1755225302808,162.51558844,193.78,193.77,0.03]
[1755225303009,198.39607971,193.78,193.77,0.03]
[1755225303832,198.39686472,193.78,193.77,0.03]
[1755225306529,193.24059048,193.78,193.77,0.03]
[1755225306914,162.52059048,193.78,193.77,0.03]
[1755225307332,163.24059048,193.78,193.77,0.03]
[1755225307836,163.24718673,193.78,193.77,0.03]
[1755225308016,168.407678,193.78,193.77,0.03]
[1755225309940,198.407678,193.78,193.77,0.03]
[1755225311724,198.407678,193.78,193.73,0.03]
[1755225311725,70.81538826,193.78,193.73,0.03]
[1755225311922,18.08499444,193.74,193.73,0.03]
[1755225312118,61.52145319,193.74,193.73,0.03]
[1755225312537,66.68380919,193.74,193.73,0.03]
[1755225313948,67.40380919,193.74,193.73,0.03]
[1755225314624,67.40533918,193.74,193.73,0.03]
[1755225315251,67.40443803,193.74,193.73,0.03]
[1755225315557,67.5039593,193.74,193.73,0.03]
[1755225315722,64.52518043,193.74,193.73,0.03]
[1755225315925,67.5039593,193.74,193.73,0.03]
[1755225317426,72.66551602,193.74,193.73,0.03]
[1755225317846,97.50316002,193.74,193.73,0.03]
[1755225318049,199.40316002,193.74,193.73,0.03]
[1755225318536,193.5216033,193.74,193.73,0.03]
[1755225318854,197.2203823,193.74,193.73,0.03]
[1755225319046,194.24160343,193.74,193.73,0.03]
[1755225319245,194.2416033,193.74,193.73,0.03]
[1755225319434,191.26282443,193.74,193.73,0.03]
[1755225319634,135.44274085,193.74,193.73,0.03]
[1755225319966,135.44274085,193.74,193.73,0.33]
[1755225321265,3.54274085,193.74,193.73,5.49182315]
[1755225321564,3.54274085,193.74,193.73,8.47060202]
[1755225321854,0.09952127,193.74,193.73,8.47060202]
[1755225324646,0.09952127,193.74,193.73,5.49182315]
[1755225324857,3.55765626,193.74,193.73,5.49182315]
[1755225325165,3.55765626,193.74,193.73,5.19182315]
[1755225326170,3.55765626,193.74,193.73,0.03]
[1755225326336,0.09952127,193.74,193.73,0.33]
[1755225328266,0.09952127,193.74,193.73,5.49182315]
[1755225329440,3.55810014,193.74,193.73,5.49182315]
[1755225330745,3.55810014,193.74,193.73,5.19182315]
[1755225332268,3.55810014,193.74,193.73,5.49182315]
[1755225332461,3.55810014,193.74,193.73,5.19182315]
[1755225332872,3.55810014,193.74,193.73,0.03]
[1755225332873,4.21810014,193.74,193.73,0.03]
[1755225333972,3.55810014,193.74,193.73,0.03]
[1755225334277,0.09952127,193.74,193.73,0.33]
[1755225334581,3.55811424,193.74,193.73,0.03]
[1755225334778,4.21811424,193.74,193.73,0.03]
[1755225334948,3.55811424,193.74,193.73,0.03]
[1755225335146,3.45859297,193.74,193.73,0.03]
[1755225335351,3.55676724,193.74,193.73,0.03]
[1755225338477,3.55676724,193.74,193.73,5.19182315]
[1755225341184,3.55676724,193.74,193.73,0.03]
[1755225342358,4.21676724,193.74,193.73,5.19182315]
[1755225342978,3.55676724,193.74,193.73,5.19182315]
[1755225346182,4.21676724,193.74,193.73,5.19182315]
[1755225346885,3.55676724,193.74,193.73,5.19182315]
[1755225347864,4.21676724,193.74,193.73,5.19182315]
[1755225348186,3.55676724,193.74,193.73,5.19182315]
[1755225349370,0.09817427,193.74,193.73,8.47060202]
[1755225350470,1e-08,193.74,193.73,8.47060202]
[1755225350673,0.11220573,193.78,193.76,26.0]
[1755225350979,1e-08,193.78,193.77,29.49485462]
[1755225351482,1e-08,193.78,193.77,34.65561221]
[1755225351686,1e-08,193.78,193.77,34.95561221]
[1755225355285,0.06,193.79,193.77,34.95561221]
[1755225355468,0.15756123,193.79,193.78,39.11877887]
[1755225356365,0.15756123,193.79,193.78,44.27927014]
[1755225358997,0.81756123,193.79,193.78,44.27927014]
[1755225359190,0.81756123,193.79,193.78,8.13927014]
[1755225359490,4.27480865,193.79,193.76,5.16078493]
[1755225359689,0.66,193.78,193.76,5.16078493]
[1755225359992,0.15756123,193.79,193.77,2.97877887]
[1755225360170,0.15756123,193.79,193.78,2.97877887]
[1755225360371,0.15756123,193.79,193.78,39.11877887]
[1755225361286,0.15756123,193.79,193.78,44.27927014]
[1755225361484,0.10876726,193.8,193.78,44.79531926]
[1755225361774,0.17224768,193.81,193.79,3.27877887]
[1755225361979,0.17224768,193.81,193.8,2.97877887]
[1755225363208,0.17224768,193.81,193.8,8.13873759]
[1755225365688,0.17224768,193.81,193.8,44.27873759]
[1755225366002,0.17224768,193.81,193.8,5.15995872]
[1755225366208,0.88224768,193.81,193.8,44.27873759]
[1755225367512,0.17224768,193.81,193.8,44.27873759]
[1755225369711,0.09303025,193.82,193.8,44.57873759]
[1755225369908,3.45680446,193.88,193.83,26.0]
[1755225370125,0.77,193.89,193.85,2.97877887]
[1755225370708,0.71,193.88,193.85,2.97877887]
[1755225371225,0.06,193.89,193.85,2.97877887]
[1755225371403,1e-08,193.87,193.86,39.61461504]
[1755225371803,1e-08,193.89,193.86,45.07297674]
[1755225372024,1e-08,193.89,193.88,2.97877887]
[1755225372203,1e-08,193.89,193.88,39.09877887]
[1755225372702,1e-08,193.9,193.88,40.7747256]
[1755225372901,1e-08,193.92,193.89,5.47048195]
[1755225373121,1e-08,193.94,193.91,30.6547256]
[1755225373427,1e-08,193.94,193.93,4.6547256]
[1755225373813,1e-08,193.94,193.93,9.81122536]
[1755225374128,0.71000001,193.94,193.93,9.81122536]
[1755225374429,0.71000001,193.94,193.93,5.15649976]
[1755225375527,0.81474802,193.94,193.93,5.15649976]
[1755225381425,5.46947362,193.94,193.88,4.6547256]
[1755225381621,4.6547256,193.91,193.89,36.1]
[1755225381822,0.71,193.9,193.89,36.1]
[1755225382631,5.3647256,193.9,193.87,5.18807291]
[1755225382815,0.71,193.9,193.87,5.18807291]
[1755225383210,0.71,193.9,193.88,36.1]
[1755225383723,0.71,193.9,193.87,0.03]
[1755225383724,5.3647256,193.89,193.87,0.03]
[1755225383925,4.6547256,193.88,193.87,0.03]
[1755225384115,5.3647256,193.88,193.87,0.03]
[1755225385924,0.71,193.88,193.87,0.03]
[1755225386144,8.10700707,193.9,193.87,0.03]
[1755225386322,0.71,193.88,193.87,0.03]
[1755225386525,5.3647256,193.88,193.87,0.03]
[1755225387428,8.81700707,193.88,193.87,0.03]
[1755225387628,5.3647256,193.88,193.87,0.03]
[1755225387826,8.81700707,193.88,193.87,0.03]
[1755225390711,29.08105222,193.88,193.87,0.03]
[1755225390923,37.23158613,193.88,193.87,0.03]
[1755225391921,15.10621557,193.87,193.85,0.03]
[1755225392120,47.09356796,193.86,193.85,0.03]
[1755225392321,47.76356796,193.86,193.85,0.03]
[1755225393540,67.17768954,193.86,193.85,0.03]
[1755225393739,103.29768954,193.86,193.85,0.03]
[1755225394634,98.98978353,193.86,193.85,0.03]
[1755225395233,68.98978353,193.86,193.85,0.03]
[1755225395545,69.09844282,193.86,193.85,0.03]
[1755225396139,69.09844282,193.86,193.78,0.03]
[1755225396140,15.10621557,193.85,193.78,0.03]
[1755225396334,4.6547256,193.79,193.78,0.03]
[1755225396845,5.3247256,193.79,193.78,0.03]
[1755225397648,29.03871082,193.79,193.78,0.03]
[1755225399544,23.87848584,193.79,193.78,0.03]
[1755225399757,53.87848584,193.79,193.78,0.03]
[1755225399939,38.77227027,193.79,193.78,0.03]
[1755225400122,38.10227027,193.79,193.78,0.03]
[1755225401349,8.77227027,193.79,193.78,0.03]
[1755225401734,5.3247256,193.79,193.78,0.03]
[1755225405436,5.3247256,193.81,193.78,0.03]
[1755225405949,0.67,193.8,193.78,0.03]
[1755225406832,5.3247256,193.8,193.78,0.03]